Cogmind - Beta 14 @@@ ROGUE MODE // 2024.09.04 @ 19:29:52 Player: AnthonyDPS 2004 Result: Destroyed by D-53 Grenadier with Mini Grenade Launcher Performance ------------- Evolutions (1) 500 Regions Visited (3) 600 Robots Destroyed (10) 50 Value Destroyed (203) 203 Prototype IDs (3) 60 Alien Tech Used (0) 0 Bonus (0) 0 TOTAL SCORE: 1413 Bonus ------- None Cogmind --------- Core Integrity 0/400 Matter 201/300 Energy 73/100 System Corruption 4% Temperature Cool (0) Movement Core (200) Ox3 Location -9/Mines Parts ------- > --- POWER (1) -------- (None) > --- PROPULSION (2) --- (None) > --- UTILITY (4) ------ Medium Storage Unit Signal Interpreter > --- WEAPON (2) ------- (None) > --- INVENTORY (10) --- Light Treads Light Treads Light Treads Light Treads Medium Storage Unit Trap Extractor (0/4) Peak State ------------ > --- POWER ------------ Light Ion Engine > --- PROPULSION ------- Light Treads Improved Treads > --- UTILITY ---------- Medium Storage Unit Large Matter Pod Signal Interpreter Trap Extractor > --- WEAPON ----------- Light Assault Rifle Light Assault Rifle > --- INVENTORY -------- Light Ion Engine Light Treads Flight Unit Medium Storage Unit Medium Storage Unit Seismic Detector Trap Extractor EM Pulse Gun Beam Cannon [Rating: 12] Favorites ----------- Power Light Ion Engine Engine Light Ion Engine Propulsion Wheel Treads Improved Treads Wheel Wheel Hover Unit Hover Unit Flight Unit Flight Unit Utility Signal Interpreter Device Seismic Detector Storage Medium Storage Unit Processor Signal Interpreter Weapon Light Assault Rifle Energy Gun Improved EM Shotgun Energy Cannon Beam Cannon Ballistic Gun Light Assault Rifle Build | -11 -10 -9 -9 ------- Run | Yrd Mat Mat Min Slots Evolved 2 | . . 2 . Power . | . . . . Propulsion . | . . . . Utility 2 | . . 2 . Weapon . | . . . . Parts Attached 28 | 8 2 17 1 Power 2 | 1 . 1 . Engine 2 | 1 . 1 . Core . | . . . . Reactor . | . . . . Propulsion 8 | 2 . 6 . Treads 4 | . . 4 . Leg . | . . . . Wheel 2 | 2 . . . Hover 1 | . . 1 . Flight 1 | . . 1 . Utility 9 | 2 2 5 . Device 4 | 1 . 3 . Storage 4 | 1 1 2 . Processor 1 | . 1 . . Hackware . | . . . . Protection . | . . . . Artifact . | . . . . Weapon 9 | 3 . 5 1 Energy Gun 4 | 1 . 2 1 Energy Cannon 1 | . . 1 . Ballistic Gun 4 | 2 . 2 . Ballistic Cannon . | . . . . Launcher . | . . . . Special Weapon . | . . . . Impact Weapon . | . . . . Slashing Weapon . | . . . . Piercing Weapon . | . . . . Special Melee Weapon . | . . . . Unidentified Prototypes 1 | . . 1 . Parts Lost 10 | . . 5 5 Power 1 | . . 1 . Propulsion 4 | . . 2 2 Utility 1 | . . 1 . Weapon 4 | . . 1 3 Highest Loss Streak 5 | . . 4 5 To Critical Strikes . | . . . . Average Slot Usage (%) 78 | . 100 78 64 Engine 6 | . 14 7 . Treads 4 | . . 6 . Wheel 8 | . 28 7 . Hover 2 | . . 1 10 Flight 5 | . . 4 11 Device 7 | . 14 7 . Storage 14 | . 14 16 11 Processor 9 | . . 11 11 Energy Gun 5 | . . 2 21 Ballistic Gun 13 | . 28 14 . Peak Build Rating 12 | 7 8 12 10 Average Rating 8 | 5 7 8 9 On Entrance 6 | . 7 8 10 Naked Turns . | . . . . Heaviest Build 20 | 11 16 20 16 Greatest Support 43 | 26 26 43 6 Greatest Overweight (x) 4 | 1 . 2 4 Average Overweight (x) . | . . . 2 Largest Inventory Capacity 10 | 8 10 10 10 Average Capacity 9 | 7 9 9 10 Most Carried 10 | 6 10 10 7 Average Carried 6 | 4 8 6 6 Final Capacity 10 | 8 10 10 10 Final Carried 10 | 6 10 7 6 Class Distribution -------------------- 100% | Mutant Dominant Class ---------------- Mutant | -10/Materials Mutant | -9/Materials Mutant | -9/Mines Resources | -11 -10 -9 -9 ----------- Run | Yrd Mat Mat Min Matter Collected 409 | 295 . 58 56 Remotely . | . . . . Salvage Created 288 | 125 . 163 . Parts 27 | 10 . 17 . Haulers Intercepted . | . . . . Recyclers Shooed . | . . . . Parts Field Recycled . | . . . . Retrieved Matter . | . . . . Parts Self-Destructed . | . . . . Prevented . | . . . . Kills | -11 -10 -9 -9 ------- Run | Yrd Mat Mat Min Combat Hostiles Destroyed 5 | . . 5 . Guns 3 | . . 3 . Cannons 1 | . . 1 . AOE 1 | . . 1 . Classes Destroyed 5 | 2 . 3 . Tunneler 3 | 2 . 1 . Recycler 1 | 1 . . . Watcher 1 | . . 1 . Swarmer 3 | . . 3 . Sentry 2 | . . 2 . Best Kill Streak 5 | 3 . 5 . Combat Bots Only 3 | . . 3 . Max Kills in Single Turn 3 | 1 . 3 . Gunslinging . | . . . . Exploded 1 | . . 1 . Melee . | . . . . Uniques/NPCs Destroyed . | . . . . Combat | -11 -10 -9 -9 -------- Run | Yrd Mat Mat Min Hostile Shots Fired 66 | . . 55 11 Missed 14 | . . 14 . Damage Taken 1150 | . 43 634 473 Core 410 | . . 141 269 Absorbed by Shields . | . . . . Core Remaining (%) 100 | 100 100 . . Volleys Fired 41 | 13 . 26 2 Largest 2 | 2 . 2 1 Hottest 80 | 40 . 80 45 Shots Fired 75 | 26 . 47 2 Gun 73 | 26 . 45 2 Cannon 2 | . . 2 . Launcher . | . . . . Special . | . . . . Kinetic 71 | 26 . 45 . Thermal 2 | . . 2 . Explosive . | . . . . Electromagnetic 2 | . . . 2 Robot Hit Streak 8 | 3 . 8 8 Robot Miss Streak 2 | 2 . 2 . Penetration Max . | . . . . Secondary Targets 2 | . . 2 . Max Gunslinging Chain 1 | . . 1 . Shots Hit Robots 50 | 13 . 35 2 Core Hits 19 | 6 . 11 2 Critical Kills . | . . . . Critical Parts Destroyed . | . . . . Critical Strikes . | . . . . Melee Attacks . | . . . . Impact . | . . . . Slashing . | . . . . Piercing . | . . . . Sneak Attacks . | . . . . Combat Hostiles . | . . . . Follow-up Attacks . | . . . . Damage Inflicted 717 | 124 . 563 30 Guns 413 | 124 . 259 30 Cannons 35 | . . 35 . Explosions 269 | . . 269 . Melee . | . . . . Ramming . | . . . . Kinetic 383 | 124 . 259 . Thermal 245 | . . 245 . Explosive 59 | . . 59 . Electromagnetic 30 | . . . 30 Impact . | . . . . Slashing . | . . . . Piercing . | . . . . Highest Corruption 4 | . . 4 4 Average Corruption 3 | . . 3 4 Corruption Purged . | . . . . Corruption Blocked . | . . . . Effects 11 | . . 8 3 Message Errors 4 | . . 2 2 Matter Fused 1 | . . 1 . Heat Flow Errors 1 | . . 1 . Energy Discharges 2 | . . 2 . Data Loss (minor) 2 | . . 1 1 Data Loss (major) 1 | . . 1 . Overload Shots . | . . . . Overflow Damage . | . . . . Projectiles . | . . . . Explosions . | . . . . Melee . | . . . . Knockbacks . | . . . . Impact . | . . . . Kinetic . | . . . . Secondary . | . . . . Self-Inflicted Damage 113 | . . 113 . Shots 1 | . . 1 . Rammed . | . . . . Targets Rammed . | . . . . Kicked . | . . . . Crushed . | . . . . Highest Temperature 286 | . . 286 . Average Temperature 74 | . . 74 . Received Heat Transfer 126 | . . 126 . Siege Activations . | . . . . Robots Corrupted . | . . . . Combat Hostiles . | . . . . Parts Fried . | . . . . Impact Corruptions . | . . . . Robots Melted . | . . . . Combat Hostiles . | . . . . Parts Melted . | . . . . Heat Transferred 174 | . . 174 . Parts Sabotaged . | . . . . Parts Stolen . | . . . . Parts Stripped . | . . . . Power Chain Reactions . | . . . . Alert | -11 -10 -9 -9 ------- Run | Yrd Mat Mat Min Peak Influence 225 | 15 9 225 87 Initial 87 | . 9 3 87 Average 48 | 4 9 52 85 Maximum Alert Level 1 | . . 1 . Low Security (%) 91 | 100 100 87 100 Level 1 8 | . . 12 . Level 2 . | . . . . Level 3 . | . . . . Level 4 . | . . . . Level 5 . | . . . . High Security . | . . . . Max Security . | . . . . Squads Dispatched 1 | . . 1 . Investigation 1 | . . 1 . Extermination . | . . . . Reinforcement . | . . . . Assault . | . . . . Garrison . | . . . . Intercept . | . . . . Searches Triggered . | . . . . Construction Impeded . | . . . . Haulers Reinforced . | . . . . Active Scanning Responses . | . . . . Cargo Convoy Interrupts . | . . . . Stealth | -11 -10 -9 -9 --------- Run | Yrd Mat Mat Min Distress Signals . | . . . . Communications Jammed . | . . . . Distress Signals . | . . . . Times Spotted 15 | . . 13 2 Peak Tracking Total 5 | . . 5 2 Tactical Retreats . | . . . . Traps | -11 -10 -9 -9 ------- Run | Yrd Mat Mat Min Traps Triggered 6 | . 1 5 . Indirectly . | . . . . Trap Hack Attempts . | . . . . Triggered . | . . . . Disarmed 6 | . . 6 . Reprogrammed . | . . . . Reused . | . . . . Traps Extracted . | . . . . Installed . | . . . . Triggered . | . . . . Machines | -11 -10 -9 -9 ---------- Run | Yrd Mat Mat Min Machines Disabled 4 | . . 4 . Max in Single Turn 4 | . . 4 . Machines Repaired . | . . . . Machines Dismantled . | . . . . Machines Sabotaged . | . . . . Overloaded Fab Kills . | . . . . Hacking | -11 -10 -9 -9 --------- Run | Yrd Mat Mat Min Machines Accessed 6 | . 2 4 . Terminals 6 | . 2 4 . Fabricators . | . . . . Repair Stations . | . . . . Recycling Units . | . . . . Scanalyzers . | . . . . Garrison Access . | . . . . Total Hacks 16 | . 5 11 . Successful 5 | . . 5 . Failed 11 | . 5 6 . Catastrophic . | . . . . Database Lockouts . | . . . . Manual . | . . . . Terminals 16 | . 5 11 . Fabricators . | . . . . Repair Stations . | . . . . Recycling Units . | . . . . Scanalyzers . | . . . . Garrison Access . | . . . . Terminal Hacks 5 | . . 5 . Robot Analysis 2 | . . 2 . Prototype ID Bank 1 | . . 1 . Disarm Traps 1 | . . 1 . Surveillance Status 1 | . . 1 . Fabricator Hacks . | . . . . Repair Station Hacks . | . . . . Recycling Unit Hacks . | . . . . Scanalyzer . | . . . . Garrison Access Hacks . | . . . . Unauthorized Hacks . | . . . . Terminals . | . . . . Fabricators . | . . . . Repair Stations . | . . . . Recycling Units . | . . . . Scanalyzers . | . . . . Garrison Access . | . . . . Data Cores Recovered . | . . . . Used . | . . . . Hacking Detections 6 | . 2 4 . Full Trace Events 1 | . . 1 . Feedback Events . | . . . . Feedback Blocked . | . . . . Robot Schematics Acquired . | . . . . Robots Built . | . . . . Authchips . | . . . . Time . | . . . . Total Robot Build Rating . | . . . . Part Schematics Acquired . | . . . . Parts Built . | . . . . Authchips . | . . . . Time . | . . . . Total Part Build Rating . | . . . . Parts Repaired . | . . . . Time . | . . . . Parts Recycled . | . . . . Recycled Matter . | . . . . Retrieved Matter . | . . . . Retrieved Components . | . . . . Parts Scanalyzed . | . . . . Part Schematics Acquired . | . . . . Parts Damaged . | . . . . Bothacking | -11 -10 -9 -9 ------------ Run | Yrd Mat Mat Min Used RIF Installer . | . . . . Robots Hacked . | . . . . Non-combat . | . . . . Combat . | . . . . Robot Hacks Applied . | . . . . Relay Couplers Released . | . . . . Fabnet Peak Effective % . | . . . . Robots Rewired . | . . . . Allies Hacked . | . . . . Hacks Repelled . | . . . . Allies | -11 -10 -9 -9 -------- Run | Yrd Mat Mat Min Total Allies . | . . . . Largest Group . | . . . . Highest-Rated Group . | . . . . Highest-Rated Ally . | . . . . Total Orders . | . . . . Ally Attacks . | . . . . Total Damage . | . . . . Kills . | . . . . Allies Corrupted . | . . . . Allies Melted . | . . . . Intel | -11 -10 -9 -9 ------- Run | Yrd Mat Mat Min Robot Analysis Total 2 | . . 2 . Derelict Logs Recovered . | . . . . Drone Launches . | . . . . Drone Recoveries . | . . . . Exploration | -11 -10 -9 -9 ------------- Run | Yrd Mat Mat Min Turns Passed 1195 | 120 124 767 184 Spaces Moved 678 | 77 128 375 98 Core 6 | 4 . . 2 Treads 135 | . . 135 . Legs . | . . . . Wheels 345 | 73 128 144 . Hover 160 | . . 64 96 Flight 32 | . . 32 . Fastest Speed 40 | 50 90 40 180 Average Speed 125 | 88 90 130 180 Slowest Speed 250 | 100 90 200 250 Overloaded Moves . | . . . . Propulsion Burnouts . | . . . . Robots Hopped . | . . . . Cave-ins Triggered . | . . . . Exploration Rate (%) 22 | 4 20 35 32 Regions Visited 3 Branch Regions 1 Pre-discovered Areas . | . . . . Known Exits Taken 2 | . 1 1 . Unknown Exits Taken 1 | 1 . . . Scrap Searched 1 | . . . 1 Spaces Dug . | . . . . Terrain Destroyed 48 | . . 48 . Melee . | . . . . Projectile . | . . . . AOE 48 | . . 48 . Terrain Rammed . | . . . . Walls Destroyed . | . . . . Machines Disabled . | . . . . Actions | -11 -10 -9 -9 --------- Run | Yrd Mat Mat Min Total 962 | 103 136 620 103 Wait 181 | . 2 177 2 Move 675 | 76 127 374 98 Hop . | . . . . Pick Up 22 | 6 4 12 . Fast Attach 12 | 7 . 5 . Attach 11 | . . 10 1 Detach 1 | . . 1 . Swap 5 | 1 2 2 . Drop 14 | . 1 13 . Fire 41 | 13 . 26 2 Melee . | . . . . Ram . | . . . . Kick . | . . . . Crush . | . . . . Escape Stasis . | . . . . Rewire . | . . . . Trap . | . . . . Miscellaneous . | . . . . Route ------- -11/Scrapyard -10/Materials -9/Materials -9/Mines History --------- Turn | Location | Event 5 | -11/Scrapyard | Discovered new exit (range 16) 121 | -11/Scrapyard | Entered Materials 237 | -10/Materials | Discovered new exit (range 3) 243 | -10/Materials | Identified exit to Materials 245 | -10/Materials | Entered another Materials area 245 | -9/Materials | Evolved 2 slots: Utility x2 307 | -9/Materials | Build established: Mutant 428 | -9/Materials | Discovered new exit (range 15) 903 | -9/Materials | Lost 4 parts (1p1n1u1w) 1011 | -9/Materials | Identified exit to Mines 1012 | -9/Materials | Entered Mines 1156 | -9/Mines | Assembled infested the area 1187 | -9/Mines | Core integrity fell below 50% 1191 | -9/Mines | Core integrity fell below 20% 1196 | -9/Mines | Destroyed by D-53 Grenadier with Mini Grenade Launcher Last Messages --------------- 01049_ Searching scrap... 01049_ Found Autogun. 01049_ Found 56 Matter. 01050_ Acquired 56 matter. 01053_ System corrupted: Component data lost. 01088_ Q=ATX7T/:NS>CPB9GS 01096_ T-07 Excavator is excavating. 01156_ ALERT: Infestation in the mines, dispatching Demolisher response squad. 01184_ C-30 ARC bursts open, deploying its payload. 01184_ D-53 Grenadier unfolds itself. 01186_ Imp. EM Shotgun destroyed. 01186_ Hover Unit destroyed. 01188_ The unstable cave ceiling collapses. 01190_ D-53 Grenadier misfires. 01192_ Flight Unit destroyed. 01192_ Imp. EM Shotgun destroyed. 01194_ The unstable cave ceiling collapses. 01194_ EM Pulse Gun destroyed. Map ----- +----------------------------------------------------+ | ??????????????????????????????????????????????? | | ??????????????????????????????????????????????? | | ??????????????????????##??????????????????????? | | ??????????????????????# ?????????????????????? | | ??????????????????????## #####???????????????? | | ??????????????????????? ##?????????????? | | ??????????????????????? ###???????????? | | ?????????????????????????? ##??????????? | | ?????????????????????????????# ##?????????? | | ??????????????????????????????# #######???? | | ?????????????????????????###### #???? | | ????????????????????????## ## ##### #???? | | ????????????????????????# ##???# #???? | | ???????????????????????## #????# #???? | | ??????????????????###### u ##????# #???? | | ??????????????????# #?????# #???? | | ??????????????????# ### ##????# #???? | | ??????????????????????# #????# #???? | | ??????????????????????## ##???# #???? | | ???????????????????????# ###?# #???? | | ???????????????#???????# ### #???? | | ???????????????# ####### ## #???? | | ???????????????# ## #???? | | ???????????????# %d ## ### #???? | | ???????????????# ## d ## ##?# #??## | | ?????????????????## @ #?# #??# ### | | ?????????????????# #??# #??# ## | | ?????????????????# ##??# ##??# | | ?????????????##### ###??##???# | | ?????????????# ##??????## | | ?????????????# ## #?????## # | | ????????????????###### #????## ## | | ?????????????????????### ##????# ## | | ?????????????????####??# ####?????# [ | | ????????????????## #### ##????????## ### | | ????????????????# ## #??????????# ###?? | | ?????????????????# ##??????????# #####? | | ?????????????????## ##???????????# ### # | | ??????????????????## #??????????? ## | | ???????????????????# ##?????????? ##### | | ???????????????????## ##?????????? #??## | | ????????????????????####?????????? #???# | | ?????????????????????????????????# ????# | | ?????????????????????????????????##?????## | | ?????????????????????????????????????????### | | ???????????????????????????????????????????# | | ???????????????????????????????????????????# | | ???????????????????????????????????????????# # | | ??????????????????????????????????????????? ? | | ??????????????????????????????????????????# ? | +----------------------------------------------------+ Best States ------------- Heat Dissipation 28 Energy Generation 10 Energy Capacity 125 Matter Stores 292 Matter Capacity 450 Sight Range 16 Terrain Scan Density 10 Evasion (%) 50 Recoil Reduction 2 Trap Extractor Capacity 4 Item Schematics ----------------- None Robot Schematics ------------------ None Fabricated ------------ Nothing Alien Tech Used ----------------- None Achievements -------------- None Challenges ------------ None Game ------ Seed AnalysisGravmagReplicator Manual? 0 Play Time 00:10:42 Cumulative 37.2 hours Start 2024.09.04 @ 19:19:47 End 2024.09.04 @ 19:29:52 Sessions 1 Manual Loads 0 Difficulty Rogue Special Mode None Game No. 72 Rogue 72 Adventurer 0 Explorer 0 Win Type - Total 0 Types 0/0/0/0/0/0/0/0/0 Lore% 15 Gallery% 31 Achievement% 28 Wizard Run 0 Options --------- Layout 1 ASCII 0 Keyboard 0 Movement Numpad Keybinds 0 Fullscreen 2 Font 24/Smallcaps Map View 50x35 Zoom Use 0% Tactical HUD 1 Map Filters NONE Filters NONE Steam 1 RUN: fe12c6c4-ccb9-40e5-aa4b-af36bad9cb4f